Cogmind - Beta 14 @@@ ROGUE MODE // 2024.11.11 @ 16:34:31 Player: Fangrelle Result: Destroyed by as-83367 with Assembled Blade Performance ------------- Evolutions (0) 0 Regions Visited (4) 800 Robots Destroyed (25) 125 Value Destroyed (492) 492 Prototype IDs (23) 460 Alien Tech Used (0) 0 Bonus (385) 385 TOTAL SCORE: 2262 Bonus ------- Follower Combat Kills 85 Aligned with FarCom 300 Cogmind --------- Core Integrity 0/250 Matter 300/300 Energy 240/250 System Corruption 0% Temperature Cool (0) Movement Hovering (60) Location -9/Mines Parts ------- > --- POWER (1) -------- Ion Engine > --- PROPULSION (2) --- Airjet > --- UTILITY (2) ------ Tractor Beam > --- WEAPON (2) ------- (None) > --- INVENTORY (5) ---- Light Nuclear Core Improved Sensor Array Targeting Computer Improved Light Armor Plating Improved Trap Extractor (0/6) Peak State ------------ > --- POWER ------------ Deuterium Engine > --- PROPULSION ------- Light Treads Wheel > --- UTILITY ---------- High-capacity Storage Unit Reflective Plating > --- WEAPON ----------- Flak Cannon Grenade Launcher > --- INVENTORY -------- Ion Engine Light Nuclear Core Reinforced Deuterium Engine Fission Core Light Fission Core Wheel Airjet Huge Storage Unit Improved Sensor Array Targeting Computer Tractor Beam Improved Trap Extractor PSU Rigger Medium Laser Medium Laser Shock Trap Shock Trap Shock Trap Shock Trap Shock Trap [Rating: 17] Favorites ----------- Power Deuterium Engine Engine Deuterium Engine Propulsion Light Treads Treads Light Treads Leg Aluminum Leg Wheel Wheel Hover Unit Airjet Utility High-capacity Storage Unit Device Heat Sink Storage High-capacity Storage Unit Protection Reflective Plating Weapon Grenade Launcher Energy Gun Medium Laser Ballistic Gun Assault Rifle Ballistic Cannon Flak Cannon Launcher Grenade Launcher Build | -11 -10 -10 -10 -9 ------- Run | Yrd Mat Min Exi Min Slots Evolved . | . . . . . Power . | . . . . . Propulsion . | . . . . . Utility . | . . . . . Weapon . | . . . . . Parts Attached 20 | . 10 4 . 6 Power 4 | . 2 1 . 1 Engine 4 | . 2 1 . 1 Core . | . . . . . Reactor . | . . . . . Propulsion 6 | . 3 1 . 2 Treads 3 | . 3 . . . Leg . | . . . . . Wheel 2 | . . 1 . 1 Hover 1 | . . . . 1 Flight . | . . . . . Utility 4 | . 2 1 . 1 Device 2 | . 1 . . 1 Storage 1 | . 1 . . . Processor . | . . . . . Hackware . | . . . . . Protection 1 | . . 1 . . Artifact . | . . . . . Weapon 6 | . 3 1 . 2 Energy Gun 3 | . 1 . . 2 Energy Cannon . | . . . . . Ballistic Gun 1 | . 1 . . . Ballistic Cannon 1 | . . 1 . . Launcher 1 | . 1 . . . Special Weapon . | . . . . . Impact Weapon . | . . . . . Slashing Weapon . | . . . . . Piercing Weapon . | . . . . . Special Melee Weapon . | . . . . . Unidentified Prototypes . | . . . . . Parts Lost 11 | . 1 1 . 9 Power 2 | . 1 . . 1 Propulsion 4 | . . 1 . 3 Utility 1 | . . . . 1 Weapon 4 | . . . . 4 Highest Loss Streak 8 | . 1 1 . 8 To Critical Strikes . | . . . . . Average Slot Usage (%) 95 | . 90 99 100 82 Engine 12 | . 8 14 14 12 Treads 16 | . 20 18 14 6 Leg 2 | . 7 . . . Wheel 8 | . . 9 14 12 Device 1 | . 1 3 . 4 Storage 16 | . 23 14 14 14 Protection 8 | . . 10 14 6 Energy Gun 2 | . 6 . . 6 Ballistic Gun 5 | . 14 3 . . Ballistic Cannon 8 | . . 10 14 7 Launcher 11 | . 7 14 14 6 Peak Build Rating 17 | . 8 15 17 17 Average Rating 12 | . 6 13 16 12 On Entrance 10 | 6 6 8 15 17 Naked Turns . | . . . . . Heaviest Build 62 | 12 55 62 62 62 Greatest Support 40 | 20 40 40 20 20 Greatest Overweight (x) 15 | . 5 3 3 15 Average Overweight (x) 1 | . . 2 3 3 Largest Inventory Capacity 20 | . 20 20 20 20 Average Capacity 19 | . 17 20 20 20 Most Carried 20 | . 9 16 20 20 Average Carried 13 | . 7 10 19 12 Final Capacity 20 | 8 20 20 20 5 Final Carried 20 | 6 8 16 20 5 Class Distribution -------------------- 64% | Mutant 35% | Trapper-Mutant Dominant Class ---------------- Mutant | -10/Materials Mutant | -10/Mines Trapper-Mutant | -10/Exiles Mutant | -9/Mines Resources | -11 -10 -10 -10 -9 ----------- Run | Yrd Mat Min Exi Min Matter Collected 751 | 191 269 223 . 68 Remotely 60 | . . . . 60 Salvage Created 518 | . 383 83 . 52 Parts 42 | . 29 11 . 2 Haulers Intercepted 1 | . 1 . . . Recyclers Shooed 2 | . 1 . . 1 Parts Field Recycled . | . . . . . Retrieved Matter . | . . . . . Parts Self-Destructed . | . . . . . Prevented . | . . . . . Kills | -11 -10 -10 -10 -9 ------- Run | Yrd Mat Min Exi Min Combat Hostiles Destroyed 24 | . 12 7 . 5 Guns 9 | . 5 . . 4 Cannons 7 | . . 6 . 1 AOE 8 | . 7 1 . . Classes Destroyed 6 | . 5 . . 1 Builder 2 | . 1 . . 1 Hauler 1 | . 1 . . . Watcher 3 | . 3 . . . Swarmer 10 | . 5 5 . . Grunt 9 | . 7 2 . . Assembled 5 | . . . . 5 Best Kill Streak 7 | . 7 3 . 4 Combat Bots Only 6 | . 6 3 . 4 Max Kills in Single Turn 3 | . 3 1 . 1 Gunslinging . | . . . . . Exploded 2 | . 2 1 . . Melee . | . . . . . Uniques/NPCs Destroyed . | . . . . . Combat | -11 -10 -10 -10 -9 -------- Run | Yrd Mat Min Exi Min Hostile Shots Fired 148 | . 65 26 . 57 Missed 51 | . 22 11 . 18 Damage Taken 1489 | . 543 154 . 792 Core 270 | . 84 17 . 169 Absorbed by Shields . | . . . . . Ignored by Resistances 8 | . . 8 . . Core Remaining (%) 100 | 100 . . . . Volleys Fired 78 | . 40 15 . 23 Largest 2 | . 2 2 . 2 Hottest 100 | . 70 74 . 100 Shots Fired 122 | . 78 17 . 27 Gun 85 | . 64 . . 21 Cannon 21 | . . 15 . 6 Launcher 16 | . 14 2 . . Special . | . . . . . Kinetic 61 | . 40 15 . 6 Thermal 45 | . 24 . . 21 Explosive 16 | . 14 2 . . Electromagnetic . | . . . . . Robot Hit Streak 10 | . 10 9 . 7 Robot Miss Streak 10 | . 4 10 . 7 Penetration Max . | . . . . . Secondary Targets 1 | . . . . 1 Max Gunslinging Chain 1 | . . . . 1 Shots Hit Robots 70 | . 36 14 . 20 Core Hits 53 | . 24 16 . 13 Critical Kills . | . . . . . Critical Parts Destroyed 1 | . 1 . . . Critical Strikes 5 | . 1 . . 4 Burn 4 | . . . . 4 Destroy 1 | . 1 . . . Melee Attacks . | . . . . . Impact . | . . . . . Slashing . | . . . . . Piercing . | . . . . . Sneak Attacks . | . . . . . Combat Hostiles . | . . . . . Follow-up Attacks . | . . . . . Damage Inflicted 1643 | . 967 354 . 322 Guns 653 | . 452 . . 201 Cannons 277 | . . 179 . 98 Explosions 690 | . 515 175 . . Melee . | . . . . . Ramming 23 | . . . . 23 Kinetic 541 | . 264 179 . 98 Thermal 389 | . 188 . . 201 Explosive 690 | . 515 175 . . Electromagnetic . | . . . . . Impact . | . . . . . Slashing . | . . . . . Piercing . | . . . . . Highest Corruption . | . . . . . Average Corruption . | . . . . . Corruption Purged . | . . . . . Corruption Blocked . | . . . . . Overload Shots . | . . . . . Overflow Damage 23 | . 12 11 . . Projectiles . | . . . . . Explosions 23 | . 12 11 . . Melee . | . . . . . Knockbacks 15 | . . 7 . 8 Impact . | . . . . . Kinetic 15 | . . 7 . 8 Secondary . | . . . . . Self-Inflicted Damage 78 | . 66 11 . 1 Shots 4 | . 3 1 . . Rammed 3 | . . . . 3 Targets Rammed 4 | . . . . 4 Kicked . | . . . . . Crushed 1 | . . . . 1 Highest Temperature 174 | . 174 87 . 96 Average Temperature 52 | . 55 31 . 63 Received Heat Transfer 283 | . 207 36 . 40 Siege Activations . | . . . . . Robots Corrupted . | . . . . . Combat Hostiles . | . . . . . Parts Fried . | . . . . . Impact Corruptions . | . . . . . Robots Melted . | . . . . . Combat Hostiles . | . . . . . Parts Melted . | . . . . . Heat Transferred 1443 | . 555 . . 888 Parts Sabotaged . | . . . . . Parts Stolen . | . . . . . Parts Stripped . | . . . . . Power Chain Reactions . | . . . . . Alert | -11 -10 -10 -10 -9 ------- Run | Yrd Mat Min Exi Min Peak Influence 345 | . 345 180 . 95 Initial 90 | . . 90 . . Average 62 | . 73 56 . 38 Maximum Alert Level 1 | . 1 . . . Low Security (%) 94 | . 87 100 . 100 Level 1 5 | . 12 . . . Level 2 . | . . . . . Level 3 . | . . . . . Level 4 . | . . . . . Level 5 . | . . . . . High Security . | . . . . . Max Security . | . . . . . Squads Dispatched 2 | . 2 . . . Investigation 2 | . 2 . . . Extermination . | . . . . . Reinforcement . | . . . . . Assault . | . . . . . Garrison . | . . . . . Intercept . | . . . . . Searches Triggered . | . . . . . Construction Impeded . | . . . . . Haulers Reinforced . | . . . . . Active Scanning Responses . | . . . . . Cargo Convoy Interrupts . | . . . . . Stealth | -11 -10 -10 -10 -9 --------- Run | Yrd Mat Min Exi Min Distress Signals 2 | . 2 . . . Communications Jammed . | . . . . . Distress Signals . | . . . . . Times Spotted 41 | . 18 8 . 15 Peak Tracking Total 7 | . 5 3 . 7 Tactical Retreats 4 | . 2 1 . 1 Traps | -11 -10 -10 -10 -9 ------- Run | Yrd Mat Min Exi Min Traps Triggered 2 | . 2 . . . Indirectly . | . . . . . Trap Hack Attempts . | . . . . . Triggered . | . . . . . Disarmed . | . . . . . Reprogrammed . | . . . . . Reused 3 | . . . . 3 Traps Extracted . | . . . . . Installed 5 | . . . . 5 Triggered 2 | . . . . 2 Most Traps Carried 5 | . . 5 5 5 Machines | -11 -10 -10 -10 -9 ---------- Run | Yrd Mat Min Exi Min Machines Disabled . | . . . . . Max in Single Turn . | . . . . . Machines Repaired . | . . . . . Machines Dismantled . | . . . . . Machines Sabotaged . | . . . . . Overloaded Fab Kills . | . . . . . Hacking | -11 -10 -10 -10 -9 --------- Run | Yrd Mat Min Exi Min Machines Accessed 10 | . 7 1 2 . Terminals 6 | . 6 . . . Fabricators . | . . . . . Repair Stations . | . . . . . Recycling Units 1 | . 1 . . . Scanalyzers . | . . . . . Garrison Access . | . . . . . Total Hacks 35 | . 24 1 10 . Successful 26 | . 15 1 10 . Failed 9 | . 9 . . . Catastrophic 1 | . 1 . . . Database Lockouts . | . . . . . Manual 22 | . 21 . 1 . Terminals 23 | . 23 . . . Fabricators . | . . . . . Repair Stations . | . . . . . Recycling Units 1 | . 1 . . . Scanalyzers . | . . . . . Garrison Access . | . . . . . Terminal Hacks 14 | . 3 1 10 . Record 9 | . . . 9 . Robot Analysis 2 | . 2 . . . Open Door 1 | . . 1 . . Alert Level 1 | . 1 . . . Derelict Proto ID Bank 1 | . . . 1 . Fabricator Hacks . | . . . . . Repair Station Hacks . | . . . . . Recycling Unit Hacks . | . . . . . Scanalyzer . | . . . . . Garrison Access Hacks . | . . . . . Unauthorized Hacks 12 | . 12 . . . Terminals 11 | . 11 . . . Assimilate 4 | . 4 . . . Botnet 5 | . 5 . . . Operators 2 | . 2 . . . Fabricators . | . . . . . Repair Stations . | . . . . . Recycling Units 1 | . 1 . . . Tunnel 1 | . 1 . . . Scanalyzers . | . . . . . Garrison Access . | . . . . . Data Cores Recovered . | . . . . . Used . | . . . . . Hacking Detections 6 | . 6 . . . Full Trace Events 1 | . 1 . . . Feedback Events . | . . . . . Feedback Blocked . | . . . . . Robot Schematics Acquired . | . . . . . Robots Built . | . . . . . Authchips . | . . . . . Time . | . . . . . Total Robot Build Rating . | . . . . . Part Schematics Acquired . | . . . . . Parts Built . | . . . . . Authchips . | . . . . . Time . | . . . . . Total Part Build Rating . | . . . . . Parts Repaired . | . . . . . Time . | . . . . . Parts Recycled . | . . . . . Recycled Matter . | . . . . . Retrieved Matter . | . . . . . Retrieved Components . | . . . . . Parts Scanalyzed . | . . . . . Part Schematics Acquired . | . . . . . Parts Damaged . | . . . . . Bothacking | -11 -10 -10 -10 -9 ------------ Run | Yrd Mat Min Exi Min Used RIF Installer . | . . . . . Robots Hacked . | . . . . . Non-combat . | . . . . . Combat . | . . . . . Robot Hacks Applied . | . . . . . Relay Couplers Released . | . . . . . Fabnet Peak Effective % . | . . . . . Robots Rewired . | . . . . . Allies Hacked . | . . . . . Hacks Repelled . | . . . . . Allies | -11 -10 -10 -10 -9 -------- Run | Yrd Mat Min Exi Min Total Allies 3 | . . . . 3 Largest Group 3 | . . . . 3 Highest-Rated Group 40 | . . . . 40 Highest-Rated Ally 16 | . . . . 16 Total Orders 2 | . . . . 2 GUARD 1 | . . . . 1 AID 1 | . . . . 1 Ally Attacks 23 | . . . . 23 Total Damage 220 | . . . . 220 Kills 4 | . . . . 4 Allies Corrupted . | . . . . . Allies Melted . | . . . . . Intel | -11 -10 -10 -10 -9 ------- Run | Yrd Mat Min Exi Min Robot Analysis Total 2 | . 2 . . . Derelict Logs Recovered 1 | . . 1 . . Drone Launches . | . . . . . Drone Recoveries . | . . . . . Exploration | -11 -10 -10 -10 -9 ------------- Run | Yrd Mat Min Exi Min Turns Passed 4322 | . 1288 1183 1552 299 Spaces Moved 1338 | 1 542 340 388 67 Core 2 | . . . . 2 Treads 1087 | . 330 340 388 29 Legs 213 | 1 212 . . . Wheels 19 | . . . . 19 Hover 17 | . . . . 17 Flight . | . . . . . Fastest Speed 110 | 120 120 240 400 110 Average Speed 297 | 120 200 332 400 320 Slowest Speed 800 | 120 470 400 400 800 Overloaded Moves . | . . . . . Propulsion Burnouts . | . . . . . Robots Hopped . | . . . . . Cave-ins Triggered . | . . . . . Exploration Rate (%) 46 | 2 69 58 86 17 Regions Visited 4 Branch Regions 3 Pre-discovered Areas 3 | . 1 2 . . Known Exits Taken . | . . . . . Unknown Exits Taken 4 | 1 1 1 1 . Scrap Searched 1 | . . 1 . . Spaces Dug . | . . . . . Terrain Destroyed 114 | . 97 17 . . Melee . | . . . . . Projectile . | . . . . . AOE 114 | . 97 17 . . Terrain Rammed . | . . . . . Walls Destroyed . | . . . . . Machines Disabled . | . . . . . Actions | -11 -10 -10 -10 -9 --------- Run | Yrd Mat Min Exi Min Total 1554 | . 666 379 391 118 Wait 76 | . 65 8 . 3 Move 1334 | . 541 339 387 67 Hop . | . . . . . Pick Up 21 | . 6 10 4 1 Fast Attach 7 | . 5 2 . . Attach 10 | . 2 2 . 6 Detach . | . . . . . Swap 3 | . 3 . . . Drop 16 | . 4 3 . 9 Fire 78 | . 40 15 . 23 Melee . | . . . . . Ram 2 | . . . . 2 Kick . | . . . . . Crush 2 | . . . . 2 Escape Stasis . | . . . . . Rewire . | . . . . . Trap 5 | . . . . 5 Miscellaneous . | . . . . . Route ------- -11/Scrapyard -10/Materials (discovered 4 exits: [*Mat x2] / *Min / [*Sub]) -10/Mines (discovered 2 exits: [*Mat] / *Exi) -10/Exiles -9/Mines (discovered 1 exit: [*Mat]) History --------- Turn | Location | Event 1 | -11/Scrapyard | Discovered new exit (range 0) 1 | -11/Scrapyard | Entered Materials 302 | -10/Materials | Build established: Mutant 601 | -10/Materials | Derelicts attacked the area 706 | -10/Materials | Discovered new exit (range 14) 730 | -10/Materials | Discovered new exit (range 15) 1132 | -10/Materials | Discovered new exit (range 11) 1243 | -10/Materials | Discovered new exit (range 16) 1289 | -10/Materials | Entered Mines 1290 | -10/Mines | Learned location of Storage (-7) 1291 | -10/Mines | Met a Derelict bent on vengeance 1409 | -10/Mines | Discovered new exit (range 11) 1509 | -10/Mines | Met a Derelict who couldn't figure out how to use a Trap Extractor 1824 | -10/Mines | Learned location of Zion (-6) 2323 | -10/Mines | Found a hidden stash of uninstalled traps 2452 | -10/Mines | Deemed a non-threat by the Exiles lab entrance 2456 | -10/Mines | Discovered new exit (range 5) 2472 | -10/Mines | Entered Exiles 2583 | -10/Exiles | Met 8R-AWN 2651 | -10/Exiles | Met EX-HEX 2771 | -10/Exiles | Met EX-BIN 2831 | -10/Exiles | Aligned with FarCom system 2835 | -10/Exiles | Given EX-Vault access code 2843 | -10/Exiles | Build established: Trapper-Mutant 2927 | -10/Exiles | Opened EX-Vault 2951 | -10/Exiles | Found PSU Rigger 3036 | -10/Exiles | Warned to stay clear of 0b10 Research branches 3156 | -10/Exiles | Met EX-DEC 3285 | -10/Exiles | Visited The Gauntlet 3972 | -10/Exiles | Discovered new exit (range 15) 4024 | -10/Exiles | Left Exiles lab with PSU Rigger 4024 | -10/Exiles | Entered Mines 4032 | -9/Mines | Assisted by bots powering up and referring to "LRC-V3" 4068 | -9/Mines | Discovered new exit (range 8) 4120 | -9/Mines | Assembled infested the area 4154 | -9/Mines | Lost 3 allies 4177 | -9/Mines | Core integrity fell below 50% 4224 | -9/Mines | Core integrity fell below 20% 4258 | -9/Mines | Lost 8 parts (1p3n1u3w) 4323 | -9/Mines | Destroyed by as-83367 with Assembled Blade Last Messages --------------- 04279_ U-05 Engineer builds a Wall. 04287_ as-83367 sneak attacks. 04288_ U-05 Engineer lays Concrete. 04289_ U-05 Engineer builds a Wall. 04290_ R-06 Scavenger collects Tractor Beam. 04293_ R-06 Scavenger suffers critical hit (Burn). 04294_ U-05 Engineer builds a Wall. 04296_ as-83367 sneak attacks. 04298_ R-06 Scavenger destroyed. 04308_ Slammed into R-06 Scavenger. 04308_ U-05 Engineer builds a Wall. 04308_ as-83367 sneak attacks. 04308_ R-06 Scavenger destroyed. 04309_ K-01 Serf collects debris. 04312_ Med. Laser destroyed. 04312_ Slammed into K-01 Serf. 04313_ U-05 Engineer builds a Wall. 04317_ U-05 Engineer lays Concrete. 04318_ U-05 Engineer builds a Wall. 04323_ Dropped Hcp. Storage Unit. Map ----- +----------------------------------------------------+ | | | ?????????????????????????????????????? | | ?????????????????????????????????????? | | ?????????????????????????????????????? | | ?????????????????????????????????????? | | ?????????????????????????????????????? | | ?????????????????????????????????????? | | ?????????????????????????????????????? | | ?????????????????????????????????????? | | ?????????????????????????????????????? | | ?????????????????????????????????????? | | ?????????????????????????????????????? | | ?????????????????????????????????????? | | ????????????????????????????????#????? | | ????????????????????????????????=????? | | ?##########?????????????????????!###?? | | ?# #?????????????????????= ##? | | ?# #?????????????????????%! ? | | ?# #????????????????????? ? | | ?### #????????????????????? | | ???# #????????????####?????# | | ???# #??????????### #####?# ? | | ???##### ##????????### ### #?? | | ???????# #?????????# =##% # # ## ##? | | ???# # # ################### " "#? | | ???# # %u!k@a=%%=! % =!*!k= *" "#? | | ???# #%################## = ==*% "## | | ???????#%#?????????# ##*[# " | | ???????= ?????????## # # % | | ??????"" ??????????##### ### | | ?????""" ?????????????## ### % # | | ?????""" ??????????????## ##" "# | | ???? < ??????????????# #" "# | | ?????""" ??????????????## #? | | ???????" ??????????????# #? | | ???????" ??????????????## #? | | ??????? ??????????????#### #? | | ???????" """ ?????????????????## ##? | | ???????? """ ?????????????????####?? | | ???????? ??? ??????????????????????? | | ???????? ????????????????????????????? | | ???????? ????????????????????????????? | | ?????????????????????????????????????? | | ?????????????????????????????????????? | | ?????????????????????????????????????? | | ?????????????????????????????????????? | | ?????????????????????????????????????? | | ?????????????????????????????????????? | | ?????????????????????????????????????? | | ?????????????????????????????????????? | +----------------------------------------------------+ Best States ------------- Heat Dissipation 35 Energy Generation 14 Energy Capacity 275 Matter Stores 300 Matter Capacity 300 Sight Range 16 Terrain Scan Density 10 Armor Coverage 150 Resistance: TH 10 Evasion (%) 55 Recoil Reduction 2 Item Schematics ----------------- None Robot Schematics ------------------ None Fabricated ------------ Nothing Alien Tech Used ----------------- None Achievements -------------- None Challenges ------------ None Game ------ Seed SiegeFieldTrident Manual? 0 Play Time 00:18:04 Cumulative 51.9 hours Start 2024.11.11 @ 16:03:56 End 2024.11.11 @ 16:34:31 Sessions 3 Manual Loads 0 Difficulty Rogue Special Mode None Game No. 99 Rogue 99 Adventurer 0 Explorer 0 Win Type - Total 0 Types 0/0/0/0/0/0/0/0/0 Lore% 37 Gallery% 31 Achievement% 32 Wizard Run 0 Options --------- Layout 0 ASCII 0 Keyboard 0 Movement Mouse Keybinds 0 Fullscreen 1 Font 24/Smallcaps Map View 91x25 Zoom Use 94% Tactical HUD 1 Map Filters NONE Filters NONE Steam 1 RUN: 057d9be4-522d-4040-b0d9-8fc84945cad7